fUSD/lending_fUSD_20240929
["ID","MTS","AMOUNT","RATE_DAILY","PERIOD"]
[339499586,1727643045520,-256.5492528,0.0001165,2]
[339499587,1727643045530,-2783.0,0.00011658,2]
[339499588,1727643045539,-1038.0,0.00011658,2]
[339499589,1727643045548,-150.0,0.00011661,2]
[339499590,1727643045557,-237.03711621,0.00011676,2]
[339499591,1727643045566,-150.0,0.00011679,2]
[339499592,1727643045575,-1000.0,0.00011696,2]
[339499593,1727643045584,-2783.0,0.00011699,2]
[339499594,1727643045593,-1038.0,0.00011699,2]
[339499595,1727643045603,-345.65724953,0.00011734,2]
[339499596,1727643045612,-150.0,0.00011737,2]
[339499597,1727643045621,-2783.0,0.0001174,2]
[339499598,1727643045630,-1038.0,0.0001174,2]
[339499599,1727643045639,-2783.0,0.00011781,2]
[339499600,1727643045648,-1038.0,0.00011781,2]
[339499601,1727643045657,-2783.0,0.00011822,2]
[339499602,1727643045667,-1038.0,0.00011822,2]
[339499603,1727643045676,-150.0,0.00011833,2]
[339499604,1727643045685,-150.0,0.00011858,2]
[339499605,1727643045695,-2783.0,0.00011863,2]
[339499606,1727643045705,-1038.0,0.00011863,2]
[339499607,1727643045716,-1508.06,0.00011877,2]
[339499608,1727643045725,-422.78,0.00011877,2]
[339499609,1727643045734,-150.0,0.00011879,2]
[339499610,1727643045743,-506.0,0.000119,2]
[339499611,1727643045753,-943.92904584,0.000119,2]
[339499612,1727643045762,-2783.0,0.00011904,2]
[339499613,1727643045771,-1038.0,0.00011904,2]
[339499614,1727643045780,-255.0,0.00011945,2]
[339499615,1727643045790,-6873.8248961,0.00012,2]
[339499616,1727643045799,-21882.74434505,0.00012,2]
[339499617,1727643045809,-2970.73851132,0.00012,2]
[339499618,1727643045818,-1085.0,0.00012,3]
[339499619,1727643045827,-1022.18,0.00012,2]
[339499620,1727643045837,-5874.0,0.00012,2]
[339499621,1727643045847,-10462.0,0.00012,2]
[339499622,1727643045857,-3000.0,0.00012,2]
[339499623,1727643045866,-2000.0,0.00012,2]
[339499624,1727643045876,-10000.0,0.00012,2]
[339499625,1727643045886,-9000.0,0.00012,2]
[339499626,1727643045895,-318.54601057,0.00012,2]
[339499627,1727643045904,-3495.15695264,0.00012,10]
[339499628,1727643045914,-151.0,0.00012,2]
[339499629,1727643045923,-588.738926,0.00012,2]
[339499630,1727643045932,-588.738926,0.00012,2]
[339499631,1727643045941,-1100.0,0.00012,2]
[339499632,1727643045951,-226.65625297,0.00012,5]
[339499633,1727643045965,-269.36100903,0.00012,5]
[339499634,1727643045975,-208.921249,0.00012,2]
[339499635,1727643045985,-56176.16225152,0.00012006,2]
[339499636,1727643045995,-151.0,0.00012006,2]
[339499637,1727643046004,-1010.34,0.0001201,2]
[339499638,1727643046013,-371.5,0.00012033,2]
[339499640,1727643046022,-39831.01,0.00012055,2]
[339499642,1727643046031,-180.0,0.00012055,2]
[339499644,1727643046041,-301.07,0.00012082,2]
[339499645,1727643046050,-155.0,0.0001225,2]
[339499646,1727643046059,-1252.76766456,0.000123,2]
[339499647,1727643046068,-187.218032,0.00012329,2]
[339499648,1727643046077,-187.218032,0.00012329,2]
[339499649,1727643046088,-187.218032,0.00012329,2]
[339499650,1727643046097,-187.218032,0.00012329,2]
[339499651,1727643046106,-151.0,0.00012329,2]
[339499652,1727643046115,-151.0,0.00012329,2]
[339499653,1727643046124,-151.0,0.00012329,2]
[339499654,1727643046133,-204.599371,0.00012329,2]
[339499655,1727643046143,-204.599371,0.00012329,2]
[339499656,1727643046152,-204.599371,0.00012329,2]
[339499657,1727643046161,-204.599371,0.00012329,2]
[339499658,1727643046170,-204.599371,0.00012329,2]
[339499660,1727643046179,-204.599371,0.00012329,2]
[339499662,1727643046188,-151.0,0.00012329,2]
[339499664,1727643046198,-151.0,0.00012329,2]
[339499665,1727643046207,-151.0,0.00012329,2]
[339499667,1727643046216,-203.190125,0.00012329,2]
[339499669,1727643046225,-203.190125,0.00012329,2]
[339499671,1727643046234,-203.190125,0.00012329,2]
[339499673,1727643046248,-203.190125,0.00012329,2]
[339499674,1727643046257,-303.112483,0.00012329,2]
[339499675,1727643046267,-303.112483,0.00012329,2]
[339499676,1727643046276,-303.112483,0.00012329,2]
[339499677,1727643046287,-303.112483,0.00012329,2]
[339499678,1727643046296,-379.501262,0.00012329,2]
[339499679,1727643046305,-379.501262,0.00012329,2]
[339499680,1727643046315,-379.501262,0.00012329,2]
[339499681,1727643046325,-379.501262,0.00012329,2]
[339499682,1727643046334,-151.0,0.00012329,2]
[339499683,1727643046344,-151.0,0.00012329,2]
[339499684,1727643046355,-453.775,0.00012329,2]
[339499685,1727643046364,-453.775,0.00012329,2]
[339499686,1727643046374,-453.775,0.00012329,2]
[339499687,1727643046384,-453.775,0.00012329,2]
[339499688,1727643046394,-151.0,0.00012329,2]
[339499689,1727643046403,-151.0,0.00012329,2]
[339499690,1727643046413,-151.0,0.00012329,2]
[339499691,1727643046422,-151.0,0.00012329,2]
[339499692,1727643046431,-161.684621,0.00012329,2]
[339499693,1727643046442,-151.591263,0.00012329,2]
[339499694,1727643046452,-197.761065,0.00012329,2]
[339499695,1727643046461,-197.761065,0.00012329,2]
[339499696,1727643046471,-151.0,0.00012329,2]
[339499697,1727643046481,-197.761065,0.00012329,2]
[339499698,1727643046490,-151.0,0.00012329,2]
[339499699,1727643046499,-197.761065,0.00012329,2]
[339499700,1727643046508,-151.0,0.00012329,2]
[339499701,1727643046517,-151.0,0.00012329,2]
[339499702,1727643046526,-151.0,0.00012329,2]
[339499703,1727643046535,-151.0,0.00012329,2]
[339499704,1727643046545,-151.0,0.00012329,2]
[339499705,1727643046554,-206.163483,0.00012329,2]
[339499706,1727643046563,-151.0,0.00012329,2]
[339499707,1727643046572,-206.163483,0.00012329,2]
[339499708,1727643046581,-473.023967,0.00012329,2]
[339499709,1727643046590,-206.163483,0.00012329,2]
[339499710,1727643046600,-473.023967,0.00012329,2]
[339499711,1727643046609,-206.163483,0.00012329,2]
[339499712,1727643046618,-473.023967,0.00012329,2]
[339499713,1727643046627,-473.023967,0.00012329,2]
[339499714,1727643046636,-151.811209,0.00012329,2]
[339499715,1727643046645,-151.811209,0.00012329,2]
[339499716,1727643046654,-151.811209,0.00012329,2]
[339499717,1727643046663,-151.811209,0.00012329,2]
[339499718,1727643046672,-151.0,0.00012329,2]
[339499719,1727643046681,-151.0,0.00012329,2]
[339499720,1727643046690,-151.0,0.00012329,2]
[339499721,1727643046700,-151.785388,0.00012329,2]
[339499722,1727643046709,-315.030538,0.00012329,2]
[339499723,1727643046718,-315.030538,0.00012329,2]
[339499724,1727643046728,-315.030538,0.00012329,2]
[339499725,1727643046738,-315.030538,0.00012329,2]
[339499726,1727643046747,-151.0,0.00012329,2]
[339499727,1727643046757,-151.0,0.00012329,2]
[339499728,1727643046766,-151.0,0.00012329,2]
[339499729,1727643046775,-151.0,0.00012329,2]
[339499730,1727643046785,-151.0,0.00012329,2]
[339499731,1727643046794,-151.0,0.00012329,2]
[339499732,1727643046803,-151.0,0.00012329,2]
[339499733,1727643046814,-151.0,0.00012329,2]
[339499734,1727643046823,-151.0,0.00012329,2]
[339499735,1727643046832,-151.0,0.00012329,2]
[339499736,1727643046842,-151.0,0.00012329,2]
[339499737,1727643046851,-151.0,0.00012329,2]
[339499738,1727643046860,-395.677535,0.00012329,2]
[339499739,1727643046869,-395.677535,0.00012329,2]
[339499740,1727643046879,-395.677535,0.00012329,2]
[339499741,1727643046888,-395.677535,0.00012329,2]
[339499742,1727643046897,-151.0,0.00012329,2]
[339499743,1727643046907,-151.0,0.00012329,2]
[339499744,1727643046916,-151.0,0.00012329,2]
[339499745,1727643046925,-151.0,0.00012329,2]
[339499746,1727643046934,-151.0,0.00012329,2]
[339499747,1727643046944,-151.180684,0.00012329,2]
[339499748,1727643046953,-345.693279,0.00012329,2]
[339499749,1727643046962,-345.693279,0.00012329,2]
[339499750,1727643046973,-345.693279,0.00012329,2]
[339499751,1727643046982,-345.693279,0.00012329,2]
[339499752,1727643046991,-345.693279,0.00012329,2]
[339499753,1727643047000,-345.693279,0.00012329,2]
[339499754,1727643047009,-393.1105,0.00012329,2]
[339499755,1727643047018,-393.1105,0.00012329,2]
[339499756,1727643047028,-393.1105,0.00012329,2]
[339499757,1727643047037,-393.1105,0.00012329,2]
[339499758,1727643047046,-393.1105,0.00012329,2]
[339499759,1727643047055,-393.1105,0.00012329,2]
[339499760,1727643047064,-151.0,0.00012329,2]
[339499761,1727643047073,-151.0,0.00012329,2]
[339499762,1727643047082,-151.0,0.00012329,2]
[339499763,1727643047091,-151.0,0.00012329,2]
[339499764,1727643047100,-151.0,0.00012329,2]
[339499765,1727643047109,-151.0,0.00012329,2]
[339499766,1727643047118,-374.856363,0.00012329,2]
[339499767,1727643047128,-374.856363,0.00012329,2]
[339499768,1727643047137,-374.856363,0.00012329,2]
[339499769,1727643047147,-374.856363,0.00012329,2]
[339499770,1727643047156,-374.856363,0.00012329,2]
[339499771,1727643047166,-374.856363,0.00012329,2]
[339499772,1727643047175,-372.827696,0.00012329,2]
[339499773,1727643047185,-372.827696,0.00012329,2]
[339499774,1727643047194,-372.827696,0.00012329,2]
[339499775,1727643047203,-372.827696,0.00012329,2]
[339499776,1727643047212,-372.827696,0.00012329,2]
[339499777,1727643047222,-372.827696,0.00012329,2]
[339499778,1727643047233,-151.0,0.00012329,2]
[339499779,1727643047245,-151.0,0.00012329,2]
[339499780,1727643047254,-151.0,0.00012329,2]
[339499781,1727643047446,-151.0,0.00012329,2]
[339499782,1727643047455,-151.0,0.00012329,2]
[339499783,1727643047465,-435.082799,0.00012329,2]
[339499784,1727643047474,-435.082799,0.00012329,2]
[339499785,1727643047485,-151.0,0.00012329,2]
[339499786,1727643047494,-151.0,0.00012329,2]
[339499787,1727643047503,-151.0,0.00012329,2]
[339499788,1727643047512,-151.0,0.00012329,2]
[339499789,1727643047521,-151.0,0.00012329,2]
[339499790,1727643047530,-1222.090108,0.00012329,2]
[339499791,1727643047540,-151.0,0.00012329,2]
[339499792,1727643047549,-235.78811389,0.00012329,2]
[339499793,1727643047578,-69.97978911,0.00012329,2]
[339499794,1727643047587,-178.416298,0.00012329,2]
[339499795,1727643047596,-252.18218914,0.00012329,2]
[339499796,1727643047607,-53.58571386,0.00012329,2]
[339499797,1727643047617,-178.416298,0.00012329,2]
[339499798,1727643047626,-169.560683,0.00012329,2]
[339499799,1727643047635,-169.560683,0.00012329,2]
[339499800,1727643047644,-231.094673,0.00012329,2]
[339499801,1727643047654,-151.0,0.00012329,2]
[339499802,1727643047663,-151.0,0.00012329,2]
[339499803,1727643047672,-98.60637715,0.00012329,2]
[339499804,1727643047687,-52.39362285,0.00012329,2]
[339499805,1727643047696,-426.4408,0.00012329,2]
[339499806,1727643047706,-151.0,0.00012329,2]
[339499807,1727643047715,-426.4408,0.00012329,2]
[339499808,1727643047724,-151.0,0.00012329,2]
[339499809,1727643047734,-378.264945,0.00012329,2]
[339499810,1727643047743,-151.0,0.00012329,2]
[339499811,1727643047754,-378.264945,0.00012329,2]
[339499812,1727643047764,-151.0,0.00012329,2]
[339499813,1727643047774,-578.85657,0.00012329,2]
[339499814,1727643047785,-151.0,0.00012329,2]
[339499815,1727643047795,-151.694094,0.00012329,2]
[339499816,1727643047804,-578.85657,0.00012329,2]
[339499817,1727643047814,-151.0,0.00012329,2]
[339499818,1727643047824,-1595.567542,0.00012329,2]
[339499819,1727643047833,-1141.82811115,0.00012329,2]
[339499820,1727643047845,-453.73943085,0.00012329,2]
[339499821,1727643047855,-151.0,0.00012329,2]
[339499822,1727643047864,-151.0,0.00012329,2]
[339499823,1727643047873,-151.0,0.00012329,2]
[339499824,1727643047882,-151.0,0.00012329,2]
[339499825,1727643047891,-231.551411,0.00012329,2]
[339499826,1727643047900,-231.551411,0.00012329,2]
[339499827,1727643047909,-164.131969,0.00012329,2]
[339499828,1727643047919,-164.131969,0.00012329,2]
[339499829,1727643047928,-784.272764,0.00012329,2]
[339499830,1727643047937,-784.272764,0.00012329,2]
[339499831,1727643047947,-686.465721,0.00012329,2]
[339499832,1727643047956,-686.465721,0.00012329,2]
[339499833,1727643047965,-371.65,0.00012329,2]
[339499834,1727643047974,-371.65,0.00012329,2]
[339499835,1727643047987,-151.0,0.00012329,2]
[339499836,1727643047997,-151.0,0.00012329,2]
[339499837,1727643048007,-173.481784,0.00012329,2]
[339499838,1727643048017,-173.481784,0.00012329,2]
[339499839,1727643048027,-925.222029,0.00012329,2]
[339499840,1727643048038,-194.184528,0.00012329,2]
[339499841,1727643048048,-695.11019102,0.00012329,2]
[339499842,1727643048061,-230.11183798,0.00012329,2]
[339499843,1727643048072,-194.184528,0.00012329,2]
[339499844,1727643048082,-151.0,0.00012329,2]
[339499845,1727643048092,-151.0,0.00012329,2]
[339499846,1727643048101,-373.278416,0.00012329,2]
[339499847,1727643048111,-12.74681039,0.00012329,2]
[339499848,1727643048123,-360.53160561,0.00012329,2]
[339499849,1727643048133,-8.51680202,0.00012329,2]
[339499850,1727643048914,-150.0,0.0001097,2]
[339499851,1727643048924,-208.921249,0.00012,2]
[339499852,1727643048934,-142.48319798,0.00012329,2]
[339499853,1727643048943,-289.202454,0.00012329,2]
[339499854,1727643048953,-289.202454,0.00012329,2]
[339499855,1727643048961,-151.0,0.00012329,2]
[339499856,1727643048971,-296.276597,0.00012329,2]
[339499857,1727643048984,-296.276597,0.00012329,2]
[339499858,1727643048993,-151.0,0.00012329,2]
[339499859,1727643049003,-34.06893841,0.00012329,2]
[339499860,1727643049021,-2100.60749614,0.00012329,2]
[339499861,1727643049096,-5195.22232545,0.00012329,2]
[339499862,1727643049106,-293.453674,0.00012329,2]
[339499863,1727643049115,-7329.89876,0.00012329,2]
[339499864,1727643049125,-151.0,0.00012329,2]
[339499865,1727643049134,-206.113608,0.00012329,2]
[339499866,1727643049144,-157.717946,0.00012329,2]
[339499867,1727643049153,-136.66545969,0.00012329,2]
[339499868,1727643049165,-319.28284231,0.00012329,2]
[339499869,1727643049175,-206.113608,0.00012329,2]
[339499870,1727643049185,-157.717946,0.00012329,2]
[339499871,1727643049195,-455.948302,0.00012329,2]
[339499872,1727643049204,-1146.029547,0.00012329,2]
[339499873,1727643049214,-1146.029547,0.00012329,2]
[339499874,1727643049224,-242.382099,0.00012329,2]
[339499875,1727643049235,-795.725941,0.00012329,2]
[339499876,1727643049248,-151.0,0.00012329,2]
[339499877,1727643049258,-242.382099,0.00012329,2]
[339499878,1727643049267,-795.725941,0.00012329,2]
[339499879,1727643049277,-151.0,0.00012329,2]
[339499880,1727643049287,-151.0,0.00012329,2]
[339499881,1727643049297,-1373.666483,0.00012329,2]
[339499882,1727643049306,-530.591113,0.00012329,2]
[339499883,1727643049317,-241.097245,0.00012329,2]
[339499884,1727643049327,-1373.666483,0.00012329,2]
[339499885,1727643049336,-530.591113,0.00012329,2]
[339499886,1727643049345,-241.097245,0.00012329,2]
[339499887,1727643049355,-151.0,0.00012329,2]
[339499888,1727643049364,-151.0,0.00012329,2]
[339499889,1727643049373,-151.0,0.00012329,2]
[339499890,1727643049382,-202.518626,0.00012329,2]
[339499891,1727643049391,-1419.180052,0.00012329,2]
[339499892,1727643049401,-202.518626,0.00012329,2]
[339499893,1727643049410,-1419.180052,0.00012329,2]
[339499894,1727643049420,-151.0,0.00012329,2]
[339499895,1727643049429,-1973.061204,0.00012329,2]
[339499896,1727643049439,-1973.061204,0.00012329,2]
[339499897,1727643049448,-151.0,0.00012329,2]
[339499898,1727643049458,-162.684185,0.00012329,2]
[339499899,1727643049467,-236.491825,0.00012329,2]
[339499900,1727643049476,-162.684185,0.00012329,2]
[339499901,1727643049486,-236.491825,0.00012329,2]
[339499902,1727643049496,-151.0,0.00012329,2]
[339499903,1727643049505,-187.218032,0.00012329,2]
[339499904,1727643049515,-187.218032,0.00012329,2]
[339499905,1727643049524,-151.0,0.00012329,2]
[339499906,1727643049534,-204.599371,0.00012329,2]
[339499907,1727643049544,-204.599371,0.00012329,2]
[339499908,1727643049554,-151.0,0.00012329,2]
[339499909,1727643049563,-203.190125,0.00012329,2]
[339499910,1727643049573,-203.190125,0.00012329,2]
[339499911,1727643049582,-303.112483,0.00012329,2]
[339499912,1727643049592,-303.112483,0.00012329,2]
[339499913,1727643049601,-379.501262,0.00012329,2]
[339499914,1727643049610,-379.501262,0.00012329,2]
[339499915,1727643049620,-151.0,0.00012329,2]
[339499916,1727643049629,-453.775,0.00012329,2]
[339499917,1727643049638,-453.775,0.00012329,2]
[339499918,1727643049647,-151.0,0.00012329,2]
[339499919,1727643049656,-151.0,0.00012329,2]
[339499920,1727643049723,-197.761065,0.00012329,2]
[339499921,1727643049735,-197.761065,0.00012329,2]
[339499922,1727643049744,-151.0,0.00012329,2]
[339499923,1727643049753,-151.0,0.00012329,2]
[339499924,1727643049762,-151.248085,0.00012329,2]
[339499925,1727643049772,-206.163483,0.00012329,2]
[339499926,1727643049781,-151.0,0.00012329,2]
[339499927,1727643049790,-473.023967,0.00012329,2]
[339499928,1727643049799,-206.163483,0.00012329,2]
[339499929,1727643049809,-473.023967,0.00012329,2]
[339499930,1727643049818,-151.811209,0.00012329,2]
[339499931,1727643049827,-151.811209,0.00012329,2]
[339499932,1727643049836,-151.0,0.00012329,2]
[339499933,1727643049845,-315.030538,0.00012329,2]
[339499934,1727643049854,-315.030538,0.00012329,2]
[339499935,1727643049863,-151.0,0.00012329,2]
[339499936,1727643049872,-151.0,0.00012329,2]
[339499937,1727643049882,-151.0,0.00012329,2]
[339499938,1727643049891,-395.677535,0.00012329,2]
[339499939,1727643049900,-395.677535,0.00012329,2]
[339499940,1727643049909,-789.09124257,0.0001233,2]
[339499941,1727643049919,-789.09124257,0.0001233,2]
[339499942,1727643049928,-789.09124257,0.0001233,2]
[339499943,1727643049937,-789.09124257,0.0001233,2]
[339499944,1727643049946,-789.09124257,0.0001233,2]
[339499945,1727643049956,-789.09124257,0.0001233,2]
[339499946,1727643049966,-789.09124257,0.0001233,2]
[339499947,1727643049975,-789.09124257,0.0001233,2]
[339499948,1727643049986,-789.09124257,0.0001233,2]
[339499949,1727643049995,-789.09124257,0.0001233,2]
[339499950,1727643050004,-789.09124257,0.0001233,2]
[339499951,1727643050014,-789.09124257,0.0001233,2]
[339499952,1727643050023,-789.09124257,0.0001233,2]
[339499953,1727643050033,-789.09124257,0.0001233,2]
[339499954,1727643050042,-789.09124257,0.0001233,2]
[339499955,1727643050051,-789.09124257,0.0001233,2]
[339499956,1727643050061,-789.09124257,0.0001233,2]
[339499957,1727643050070,-789.09124257,0.0001233,2]
[339499958,1727643050079,-386.20264285,0.0001233,2]
[339499959,1727643050443,325.9,9.755e-05,2]
[339499964,1727643801572,336.9,8.766e-05,2]
[339499972,1727644231787,-23900.0,0.00010486,2]
[339499973,1727644231796,-600.0,0.00010561,2]
[339499974,1727644231805,-327.14,0.00010592,2]
[339499975,1727644231815,-300.0,0.00010592,2]
[339499976,1727644231824,-1000.36,0.00010603,2]
[339499977,1727644231834,-155.37,0.00010607,2]
[339499978,1727644231843,-250.0,0.0001062,2]
[339499979,1727644231853,-304.82,0.0001065,2]
[339499980,1727644231864,-578.82,0.0001066,2]
[339499981,1727644231874,-250.0,0.00010661,2]
[339499982,1727644231883,-208.93,0.0001067,2]
[339499983,1727644231893,-499.99,0.0001067,2]
[339499984,1727644231902,-956.07,0.00010734,2]
[339499985,1727644231912,-500.0,0.00010877,2]
[339499986,1727644231922,-150.0,0.00010879,2]
[339499987,1727644231931,-500.0,0.00010886,2]
[339499988,1727644231941,-500.0,0.00010894,2]
[339499989,1727644231950,-5602.3104,0.000109,2]
[339499990,1727644231960,-500.0,0.00010903,2]
[339499991,1727644231970,-500.0,0.00010912,2]
[339499992,1727644231979,-500.0,0.00010921,2]
[339499993,1727644231990,-500.0,0.0001093,2]
[339499994,1727644232000,-500.0,0.00010938,2]
[339499995,1727644232010,-500.0,0.00010947,2]
[339499996,1727644232019,-500.0,0.00010956,2]
[339499997,1727644232029,-157.64,0.00010959,2]
[339499998,1727644232039,-150.0,0.00010959,2]
[339499999,1727644232049,-250.0,0.00010959,2]
[339500000,1727644232058,-180.9,0.00010959,2]
[339500001,1727644232068,-985.95,0.00010959,2]
[339500002,1727644232077,-155.94,0.00010959,2]
[339500003,1727644232086,-500.0,0.00010965,2]
[339500004,1727644232095,-500.0,0.00010974,2]
[339500005,1727644232105,-150.0,0.00010974,2]
[339500006,1727644232115,-500.0,0.00010982,2]
[339500007,1727644232125,-722.52382964,0.0001099,2]
[339500008,1727644232134,-500.0,0.00010991,2]
[339500010,1727644232144,-500.0,0.00011,2]
[339500011,1727644232154,-967.87,0.00011,2]
[339500013,1727644232164,-615.798612,0.00011,2]
[339500015,1727644232173,-997.52,0.00011,2]
[339500017,1727644232183,-336.9,0.0001103,2]
[339500019,1727644232192,-280.35,0.00011032,2]
[339500020,1727644232201,-426.424,0.00011103,2]
[339500022,1727644232211,-150.0,0.00011121,2]
[339500024,1727644232220,-500.0,0.0001133,2]
[339500027,1727644232230,-500.0,0.0001133,2]
[339500029,1727644232240,-500.0,0.0001133,2]
[339500031,1727644232249,-500.0,0.0001133,2]
[339500033,1727644232259,-500.0,0.0001133,2]
[339500034,1727644232269,-500.0,0.0001133,2]
[339500036,1727644232279,-500.0,0.0001133,2]
[339500038,1727644232288,-500.0,0.0001133,2]
[339500040,1727644232298,-500.0,0.0001133,2]
[339500042,1727644232308,-500.0,0.0001133,2]
[339500044,1727644232318,-349.67,0.0001133,2]
[339500046,1727644232328,-500.0,0.0001133,2]
[339500048,1727644232338,-500.0,0.0001133,2]
[339500050,1727644232347,-362.9,0.0001133,2]
[339500052,1727644232357,-500.0,0.0001133,2]
[339500054,1727644232367,-500.0,0.0001133,2]
[339500056,1727644232377,-500.0,0.0001133,2]
[339500058,1727644232387,-500.0,0.0001133,2]
[339500060,1727644232397,-500.0,0.0001133,2]
[339500062,1727644232406,-500.0,0.0001133,2]
[339500065,1727644232415,-500.0,0.0001133,2]
[339500067,1727644232425,-403.88,0.0001133,2]
[339500069,1727644232435,-4048.97261412,0.00011364,2]
[339500071,1727644232447,-591.8028466,0.00011364,2]
[339500073,1727644232462,-399.037474,0.00011364,2]
[339500077,1727644232484,-7826.69355345,0.00011364,2]
[339500082,1727644232527,-8822.59391753,0.00011364,2]
[339500116,1727644240057,-150.0,0.00011364,2]
[339500117,1727644240066,-3074.27037394,0.00011364,2]
[339500118,1727644240077,-23776.19389263,0.00011364,2]
[339500130,1727644243164,-4176.43532773,0.00011364,2]
[339500131,1727644243174,-328.649,0.0001146,2]
[339500132,1727644243183,-400.0,0.0001146,2]
[339500133,1727644243192,-420.0,0.00011644,2]
[339500134,1727644243202,-158.846698,0.00011665,2]
[339500135,1727644243212,-300.0,0.00011686,2]
[339500136,1727644243221,-600.0,0.00011881,2]
[339500137,1727644243230,-1506.8,0.00011945,2]
[339500138,1727644243240,-304.82,0.00011981,2]
[339500139,1727644243249,-158.846698,0.00011997,2]
[339500140,1727644243259,-4001.5798786,0.00012,2]
[339500141,1727644243268,-255.0,0.00012016,2]
[339500142,1727644243278,-342.29,0.00012033,2]
[339500143,1727644243288,-180.0,0.00012055,2]
[339500144,1727644243298,-422.30975046,0.00012122,2]
[339500145,1727644243309,-227.0,0.000122,2]
[339500146,1727644243319,-500.0,0.00012231,2]
[339500147,1727644243329,-2000.0,0.00012231,2]
[339500148,1727644243338,-500.0,0.00012231,2]
[339500149,1727644243348,-500.0,0.00012231,2]
[339500150,1727644243358,-200.0,0.00012231,2]
[339500151,1727644243367,-14807.98,0.00012233,2]
[339500152,1727644243377,-155.0,0.0001225,2]
[339500153,1727644243387,-1500.0,0.00012272,2]
[339500154,1727644243398,-150.0,0.000123,2]
[339500155,1727644243408,-997.52,0.000123,2]
[339500156,1727644243418,-600.0,0.000123,2]
[339500157,1727644243427,-14720.14,0.00012307,2]
[339500158,1727644243436,-997.52,0.0001232,2]
[339500159,1727644243446,-1500.0,0.00012325,2]
[339500160,1727644243456,-403.098346,0.00012327,2]
[339500161,1727644243466,-269.6312848,0.00012327,2]
[339500162,1727644243475,-385.77377789,0.00012327,2]
[339500163,1727644243484,-11175.91566489,0.00012327,2]
[339500166,1727644245913,-291.41650499,0.0001222,2]
[339500167,1727644245924,-791.349519,0.0001222,2]
[339500168,1727644246022,-102.75602892,0.0001222,2]
[339500169,1727644246031,-13080.4445166,0.00012327,2]
[339500170,1727644349565,331.42,9.455e-05,2]
[339500178,1727644924377,314.84,8.892e-05,2]
[339500179,1727645125142,283.47,9.983e-05,2]
[339500181,1727645204489,155.34,9.983e-05,2]
[339500199,1727645432181,-224.28,9.999e-05,2]
[339500200,1727645432191,-1050.0,0.0001,2]
[339500201,1727645432200,-230.482276,0.0001041,2]
[339500202,1727645432210,-3819.3252,0.00010463,2]
[339500203,1727645432220,-300.0,0.00010562,2]
[339500204,1727645432232,-9387.053284,0.00010563,2]
[339500205,1727645432254,-612.946716,0.00010563,2]
[339500206,1727645432263,-861.23811312,0.00010656,2]
[339500213,1727645432340,-138.76188688,0.00010656,2]
[339500215,1727645432350,-250.0,0.00010671,2]
[339500216,1727645432359,-9.43811312,0.0001073,2]
[339500217,1727645438169,-297.12334589,0.00010563,2]
[339500218,1727645438180,-240.56188688,0.0001073,2]
[339500219,1727645438192,-1268.41779755,0.00010788,2]
[339500220,1727645438205,-554.47157892,0.00010788,2]
[339500221,1727645438232,-785.23100942,0.00010788,2]
[339500222,1727645438304,-21291.87961411,0.00010788,2]
[339500223,1727645438314,-299.99,0.00010788,2]